lending/lending_fUSD_20240411
["ID","MTS","AMOUNT","RATE_DAILY","PERIOD"]
[322144411,1712848276630,-500.0,0.00033424,7]
[322144412,1712848276640,-1822.04,0.00033424,7]
[322144413,1712848276649,-500.0,0.00033424,7]
[322144414,1712848276659,-4893.2,0.00033424,7]
[322144415,1712848276668,-4897.16,0.00033424,7]
[322144416,1712848276678,-500.0,0.00033424,7]
[322144417,1712848276687,-512.26,0.00033424,7]
[322144418,1712848276696,-500.0,0.00033424,7]
[322144419,1712848276706,-500.0,0.00033424,7]
[322144420,1712848276715,-1189.92,0.00033424,7]
[322144421,1712848276724,-1793.21,0.00033424,7]
[322144422,1712848276733,-500.0,0.00033424,7]
[322144423,1712848276742,-500.0,0.00033424,7]
[322144424,1712848276752,-500.0,0.00033424,7]
[322144425,1712848276761,-500.0,0.00033424,7]
[322144426,1712848276770,-151.0,0.00033424,7]
[322144427,1712848276779,-552.81,0.00033424,7]
[322144428,1712848276789,-151.0,0.00033424,7]
[322144429,1712848276798,-500.0,0.00033424,7]
[322144430,1712848276807,-151.0,0.00033424,7]
[322144431,1712848276816,-500.0,0.00033424,7]
[322144432,1712848276825,-1713.0,0.00033424,7]
[322144433,1712848276834,-2826.28,0.00033424,7]
[322144434,1712848276845,-500.0,0.00033424,7]
[322144435,1712848276855,-500.0,0.00033424,7]
[322144436,1712848276865,-500.0,0.00033424,7]
[322144437,1712848276874,-500.0,0.00033424,7]
[322144438,1712848276884,-774.51,0.00033424,7]
[322144439,1712848276893,-500.0,0.00033424,7]
[322144440,1712848276902,-500.0,0.00033424,7]
[322144441,1712848276912,-500.0,0.00033424,7]
[322144442,1712848276921,-748.85,0.00033424,7]
[322144443,1712848276930,-500.0,0.00033424,7]
[322144444,1712848276939,-8670.17,0.00033424,7]
[322144445,1712848276948,-176.854421,0.00033424,7]
[322144446,1712848276958,-500.0,0.00033424,7]
[322144447,1712848276967,-501.81,0.00033424,7]
[322144448,1712848276977,-2717.55,0.00033424,7]
[322144449,1712848276986,-4220.72,0.00033424,7]
[322144450,1712848276995,-5171.04,0.00033424,7]
[322144451,1712848277004,-2064.28,0.00033424,7]
[322144452,1712848277013,-500.0,0.00033424,7]
[322144453,1712848277023,-500.0,0.00033424,7]
[322144454,1712848277032,-1125.04,0.00033424,7]
[322144455,1712848277041,-6082.34,0.00033424,7]
[322144456,1712848277051,-500.0,0.00033424,7]
[322144457,1712848277061,-14673.52,0.00033424,7]
[322144458,1712848277070,-900.87,0.00033424,7]
[322144459,1712848277079,-500.0,0.00033424,7]
[322144460,1712848277089,-514.39904237,0.00033424,7]
[322144461,1712848277105,-2621.87,0.00033424,7]
[322144462,1712848277115,-563.72,0.00033424,7]
[322144463,1712848277126,-176.854421,0.00033424,7]
[322144464,1712848277137,-500.0,0.00033424,7]
[322144465,1712848277147,-176.854421,0.00033424,7]
[322144466,1712848277156,-500.0,0.00033424,7]
[322144467,1712848277166,-500.0,0.00033424,7]
[322144468,1712848277176,-546.08,0.00033424,7]
[322144469,1712848277185,-2603.73,0.00033424,7]
[322144470,1712848277195,-9232.3,0.00033424,7]
[322144471,1712848277205,-500.0,0.00033424,7]
[322144472,1712848277215,-176.854421,0.00033424,7]
[322144473,1712848277224,-500.0,0.00033424,7]
[322144474,1712848277234,-176.854421,0.00033424,7]
[322144475,1712848277244,-7338.42,0.00033424,7]
[322144476,1712848277253,-176.854421,0.00033424,7]
[322144477,1712848277263,-500.0,0.00033424,7]
[322144478,1712848277272,-500.0,0.00033424,7]
[322144479,1712848277282,-1767.27,0.00033424,7]
[322144480,1712848277292,-5012.6,0.00033424,7]
[322144481,1712848277301,-690.39,0.00033424,7]
[322144482,1712848277311,-552.67973778,0.00033424,7]
[322144483,1712848277320,-4659.53,0.00033424,7]
[322144484,1712848277329,-500.0,0.00033424,7]
[322144485,1712848277339,-500.0,0.00033424,7]
[322144486,1712848277350,-992.21,0.00033424,7]
[322144487,1712848277360,-500.0,0.00033424,7]
[322144488,1712848277369,-500.0,0.00033424,7]
[322144489,1712848277379,-500.0,0.00033424,7]
[322144490,1712848277389,-4297.37,0.00033424,7]
[322144491,1712848277398,-889.55,0.00033424,7]
[322144492,1712848277408,-597.59,0.00033424,7]
[322144493,1712848277418,-500.0,0.00033424,7]
[322144494,1712848277428,-1758.41,0.00033424,7]
[322144495,1712848277438,-1279.79,0.00033424,7]
[322144496,1712848277447,-19896.6,0.00033424,7]
[322144497,1712848277456,-500.0,0.00033424,7]
[322144498,1712848277466,-500.0,0.00033424,7]
[322144499,1712848277475,-5945.27,0.00033424,7]
[322144500,1712848277485,-3217.79,0.00033424,7]
[322144501,1712848277494,-1291.65,0.00033424,7]
[322144502,1712848277504,-4079.17,0.00033424,7]
[322144503,1712848277513,-564.70118061,0.00033424,7]
[322144504,1712848277522,-294.822118,0.00033424,7]
[322144505,1712848277531,-159.435945,0.00033424,7]
[322144506,1712848277540,-294.822118,0.00033424,7]
[322144507,1712848277550,-294.822118,0.00033424,7]
[322144508,1712848277559,-500.0,0.00033424,7]
[322144509,1712848277569,-500.0,0.00033424,7]
[322144510,1712848277578,-500.0,0.00033424,7]
[322144511,1712848277587,-294.822118,0.00033424,7]
[322144512,1712848277597,-151.0,0.00033424,7]
[322144513,1712848277606,-543.59,0.00033424,7]
[322144514,1712848277623,-294.822118,0.00033424,7]
[322144515,1712848277645,-294.822118,0.00033424,7]
[322144516,1712848277662,-3604.71,0.00033424,7]
[322144517,1712848277684,-5161.18,0.00033424,7]
[322144518,1712848277700,-500.0,0.00033424,7]
[322144519,1712848277718,-911.15,0.00033424,7]
[322144520,1712848277736,-2277.44,0.00033424,7]
[322144521,1712848277750,-10563.24,0.00033424,7]
[322144522,1712848277772,-151.0,0.00033424,7]
[322144523,1712848277789,-151.0,0.00033424,7]
[322144524,1712848277806,-500.0,0.00033424,7]
[322144525,1712848277826,-500.0,0.00033424,7]
[322144526,1712848277844,-775.17,0.00033424,7]
[322144527,1712848277857,-500.0,0.00033424,7]
[322144528,1712848277873,-3173.36,0.00033424,7]
[322144529,1712848277889,-2785.72,0.00033424,7]
[322144530,1712848277903,-500.0,0.00033424,7]
[322144531,1712848277919,-560.13,0.00033424,7]
[322144532,1712848277934,-2989.71,0.00033424,7]
[322144533,1712848277949,-500.0,0.00033424,7]
[322144534,1712848277964,-5672.86,0.00033424,7]
[322144535,1712848277978,-500.0,0.00033424,7]
[322144536,1712848277993,-9103.2,0.00033424,7]
[322144537,1712848278008,-500.0,0.00033424,7]
[322144538,1712848278023,-500.0,0.00033424,7]
[322144539,1712848278037,-2129.4,0.00033424,7]
[322144540,1712848278053,-4648.26,0.00033424,7]
[322144541,1712848278068,-500.0,0.00033424,7]
[322144542,1712848278082,-1027.57,0.00033424,7]
[322144543,1712848278099,-192.858646,0.00033424,7]
[322144544,1712848278113,-500.0,0.00033424,7]
[322144545,1712848278129,-192.858646,0.00033424,7]
[322144546,1712848278143,-500.0,0.00033424,7]
[322144547,1712848278159,-524.77904808,0.00033424,7]
[322144548,1712848278176,-192.858646,0.00033424,7]
[322144549,1712848278195,-5031.28,0.00033424,7]
[322144550,1712848278211,-568.88,0.00033424,7]
[322144551,1712848278227,-500.0,0.00033424,7]
[322144552,1712848278242,-500.0,0.00033424,7]
[322144553,1712848278257,-964.27,0.00033424,7]
[322144554,1712848278272,-433.43039445,0.00033424,7]
[322144555,1712848278287,-4141.29,0.00033424,7]
[322144556,1712848278304,-658.15,0.00033424,7]
[322144557,1712848278320,-500.0,0.00033424,7]
[322144558,1712848278336,-607.38,0.00033424,7]
[322144559,1712848278354,-192.858646,0.00033424,7]
[322144560,1712848278369,-192.858646,0.00033424,7]
[322144561,1712848278385,-500.0,0.00033424,7]
[322144562,1712848278399,-2761.87,0.00033424,7]
[322144563,1712848278415,-192.858646,0.00033424,7]
[322144564,1712848278430,-500.0,0.00033424,7]
[322144565,1712848278445,-985.0,0.00033424,7]
[322144566,1712848278461,-1224.97,0.00033424,7]
[322144567,1712848278477,-283.250409,0.00033424,7]
[322144568,1712848278493,-283.250409,0.00033424,7]
[322144569,1712848278508,-7538.84,0.00033424,7]
[322144570,1712848278523,-283.250409,0.00033424,7]
[322144571,1712848278538,-151.0,0.00033424,7]
[322144572,1712848278555,-778.8,0.00033424,7]
[322144573,1712848278570,-151.0,0.00033424,7]
[322144574,1712848278586,-500.0,0.00033424,7]
[322144575,1712848278603,-151.0,0.00033424,7]
[322144576,1712848278619,-500.0,0.00033424,7]
[322144577,1712848278634,-567.25667759,0.00033424,7]
[322144578,1712848278650,-1518.69,0.00033424,7]
[322144579,1712848278667,-2169.37,0.00033424,7]
[322144580,1712848278682,-9206.29,0.00033424,7]
[322144581,1712848278698,-500.0,0.00033424,7]
[322144582,1712848278713,-283.250409,0.00033424,7]
[322144583,1712848278727,-2012.8,0.00033424,7]
[322144584,1712848278742,-283.250409,0.00033424,7]
[322144585,1712848278758,-500.0,0.00033424,7]
[322144586,1712848278772,-283.250409,0.00033424,7]
[322144587,1712848278787,-151.0,0.00033424,7]
[322144588,1712848278803,-500.0,0.00033424,7]
[322144589,1712848278820,-151.0,0.00033424,7]
[322144590,1712848278836,-151.0,0.00033424,7]
[322144591,1712848278850,-2919.43,0.00033424,7]
[322144592,1712848278866,-8008.49,0.00033424,7]
[322144593,1712848278882,-3742.94,0.00033424,7]
[322144594,1712848278897,-506.02,0.00033424,7]
[322144595,1712848278911,-1301.75,0.00033424,7]
[322144596,1712848278927,-500.0,0.00033424,7]
[322144597,1712848278942,-1000.08,0.00033424,7]
[322144598,1712848278957,-500.0,0.00033424,7]
[322144599,1712848278972,-500.0,0.00033424,7]
[322144600,1712848278988,-577.42641679,0.00033424,7]
[322144601,1712848279004,-500.0,0.00033424,7]
[322144602,1712848279019,-500.0,0.00033424,7]
[322144603,1712848279034,-991.23,0.00033424,7]
[322144604,1712848279048,-153.545955,0.00033424,7]
[322144605,1712848279065,-500.0,0.00033424,7]
[322144606,1712848279081,-153.545955,0.00033424,7]
[322144607,1712848279098,-21161.68,0.00033424,7]
[322144608,1712848279112,-153.545955,0.00033424,7]
[322144609,1712848279130,-1308.61,0.00033424,7]
[322144610,1712848279146,-500.0,0.00033424,7]
[322144611,1712848279161,-507.78,0.00033424,7]
[322144612,1712848279176,-704.99,0.00033424,7]
[322144613,1712848279191,-7224.77,0.00033424,7]
[322144614,1712848279208,-5300.74,0.00033424,7]
[322144615,1712848279222,-35978.99,0.00033424,7]
[322144616,1712848279237,-153.545955,0.00033424,7]
[322144617,1712848279253,-153.545955,0.00033424,7]
[322144618,1712848279269,-500.0,0.00033424,7]
[322144619,1712848279285,-153.545949,0.00033424,7]
[322144620,1712848279300,-500.0,0.00033424,7]
[322144621,1712848279315,-500.0,0.00033424,7]
[322144622,1712848279331,-10031.99,0.00033424,7]
[322144623,1712848279344,-500.0,0.00033424,7]
[322144624,1712848279355,-558.64,0.00033424,7]
[322144625,1712848279365,-14897.92,0.00033424,7]
[322144626,1712848279374,-575.91,0.00033424,7]
[322144627,1712848279385,-500.0,0.00033424,7]
[322144628,1712848279396,-1584.52,0.00033424,7]
[322144629,1712848279405,-500.0,0.00033424,7]
[322144630,1712848279416,-1297.25,0.00033424,7]
[322144631,1712848279712,-500.0,0.00033424,7]
[322144632,1712848279725,-3964.47,0.00033424,7]
[322144633,1712848279735,-500.0,0.00033424,7]
[322144634,1712848279745,-5409.0,0.00033424,7]
[322144635,1712848279755,-500.0,0.00033424,7]
[322144636,1712848279765,-3991.52,0.00033424,7]
[322144637,1712848279774,-500.0,0.00033424,7]
[322144638,1712848279784,-500.0,0.00033424,7]
[322144639,1712848279794,-153.708968,0.00033424,7]
[322144640,1712848279804,-334.861198,0.00033424,7]
[322144641,1712848279815,-334.861198,0.00033424,7]
[322144642,1712848279825,-334.861198,0.00033424,7]
[322144643,1712848279834,-500.0,0.00033424,7]
[322144644,1712848279847,-5946.53,0.00033424,7]
[322144645,1712848279856,-500.0,0.00033424,7]
[322144646,1712848279865,-500.0,0.00033424,7]
[322144647,1712848279875,-791.54,0.00033424,7]
[322144648,1712848279885,-500.0,0.00033424,7]
[322144649,1712848279895,-22793.71,0.00033424,7]
[322144650,1712848279905,-500.0,0.00033424,7]
[322144651,1712848279914,-334.861198,0.00033424,7]
[322144652,1712848279923,-4357.24,0.00033424,7]
[322144653,1712848279933,-334.861198,0.00033424,7]
[322144654,1712848279942,-500.0,0.00033424,7]
[322144655,1712848279951,-500.0,0.00033424,7]
[322144656,1712848279961,-334.861198,0.00033424,7]
[322144657,1712848279970,-10382.84,0.00033424,7]
[322144658,1712848279979,-1706.6,0.00033424,7]
[322144659,1712848279989,-2653.13,0.00033424,7]
[322144660,1712848279998,-4149.05,0.00033424,7]
[322144661,1712848280008,-8127.3,0.00033424,7]
[322144662,1712848280017,-500.0,0.00033424,7]
[322144663,1712848280026,-4471.62,0.00033424,7]
[322144664,1712848280037,-1014.14,0.00033424,7]
[322144665,1712848280046,-500.0,0.00033424,7]
[322144666,1712848280056,-500.0,0.00033424,7]
[322144667,1712848280066,-351.83518,0.00033424,7]
[322144668,1712848280075,-351.83518,0.00033424,7]
[322144669,1712848280084,-351.83518,0.00033424,7]
[322144670,1712848280095,-1360.57,0.00033424,7]
[322144671,1712848280104,-2568.19,0.00033424,7]
[322144672,1712848280115,-4626.23,0.00033424,7]
[322144673,1712848280125,-500.0,0.00033424,7]
[322144674,1712848280136,-500.0,0.00033424,7]
[322144675,1712848280145,-500.0,0.00033424,7]
[322144676,1712848280155,-500.0,0.00033424,7]
[322144677,1712848280165,-351.83518,0.00033424,7]
[322144678,1712848280175,-8371.92,0.00033424,7]
[322144679,1712848280185,-882.15,0.00033424,7]
[322144680,1712848280194,-500.0,0.00033424,7]
[322144681,1712848280207,-351.83518,0.00033424,7]
[322144682,1712848280217,-571.79,0.00033424,7]
[322144683,1712848280226,-351.83517,0.00033424,7]
[322144684,1712848280236,-500.0,0.00033424,7]
[322144685,1712848280245,-3866.72,0.00033424,7]
[322144686,1712848280254,-526.24,0.00033424,7]
[322144687,1712848280264,-500.0,0.00033424,7]
[322144688,1712848280274,-700.86,0.00033424,7]
[322144689,1712848280284,-9097.61,0.00033424,7]
[322144690,1712848280294,-2966.64,0.00033424,7]
[322144691,1712848280304,-509.70502594,0.00033424,7]
[322144692,1712848280313,-4850.41,0.00033424,7]
[322144693,1712848280324,-12609.61,0.00033424,7]
[322144694,1712848280333,-584.04,0.00033424,7]
[322144695,1712848280342,-1746.74,0.00033424,7]
[322144696,1712848280353,-500.0,0.00033424,7]
[322144697,1712848280362,-500.0,0.00033424,7]
[322144698,1712848280371,-26995.96,0.00033424,7]
[322144699,1712848280380,-500.0,0.00033424,7]
[322144700,1712848280389,-2164.81,0.00033424,7]
[322144701,1712848280399,-500.0,0.00033424,7]
[322144702,1712848280408,-500.0,0.00033424,7]
[322144703,1712848280417,-959.964371,0.00033424,7]
[322144704,1712848280426,-959.964371,0.00033424,7]
[322144705,1712848280436,-161.021274,0.00033424,7]
[322144706,1712848280445,-161.021274,0.00033424,7]
[322144707,1712848280455,-500.0,0.00033424,7]
[322144708,1712848280464,-959.964371,0.00033424,7]
[322144709,1712848280473,-4552.47,0.00033424,7]
[322144710,1712848280482,-500.0,0.00033424,7]
[322144711,1712848280492,-959.96437,0.00033424,7]
[322144712,1712848280502,-6182.2,0.00033424,7]
[322144713,1712848280511,-500.0,0.00033424,7]
[322144714,1712848280521,-500.0,0.00033424,7]
[322144715,1712848280531,-923.37,0.00033424,7]
[322144716,1712848280540,-1432.47,0.00033424,7]
[322144717,1712848280550,-1186.21,0.00033424,7]
[322144718,1712848280560,-7204.23,0.00033424,7]
[322144719,1712848280569,-161.021274,0.00033424,7]
[322144720,1712848280579,-500.0,0.00033424,7]
[322144721,1712848280588,-161.021283,0.00033424,7]
[322144722,1712848280599,-1477.05,0.00033424,7]
[322144723,1712848280609,-500.0,0.00033424,7]
[322144724,1712848280618,-2173.75,0.00033424,7]
[322144725,1712848280627,-500.0,0.00033424,7]
[322144726,1712848280637,-3437.27,0.00033424,7]
[322144727,1712848280647,-500.0,0.00033424,7]
[322144728,1712848280657,-6080.92,0.00033424,7]
[322144729,1712848280667,-586.77,0.00033424,7]
[322144730,1712848280677,-8184.84,0.00033424,7]
[322144731,1712848280686,-835.61,0.00033424,7]
[322144732,1712848280696,-3242.78,0.00033424,7]
[322144733,1712848280705,-10388.77,0.00033424,7]
[322144734,1712848280715,-500.0,0.00033424,7]
[322144735,1712848280725,-1622.99,0.00033424,7]
[322144736,1712848280734,-500.0,0.00033424,7]
[322144737,1712848280744,-888.03,0.00033424,7]
[322144738,1712848280753,-5024.85,0.00033424,7]
[322144739,1712848280762,-1525.88,0.00033424,7]
[322144740,1712848280771,-500.0,0.00033424,7]
[322144741,1712848280781,-2766.08,0.00033424,7]
[322144742,1712848280791,-1168.24,0.00033424,7]
[322144743,1712848280801,-500.0,0.00033424,7]
[322144744,1712848280811,-403.99647383,0.00033424,7]
[322144745,1712848280821,-544.705449,0.00033424,7]
[322144746,1712848280830,-927.83,0.00033424,7]
[322144747,1712848280839,-544.705449,0.00033424,7]
[322144748,1712848280850,-73654.38,0.00033424,7]
[322144749,1712848280859,-6684.37,0.00033424,7]
[322144750,1712848280868,-4230.69,0.00033424,7]
[322144751,1712848280877,-544.705449,0.00033424,7]
[322144752,1712848280887,-2491.29,0.00033424,7]
[322144753,1712848280897,-500.0,0.00033424,7]
[322144754,1712848280906,-793.41,0.00033424,7]
[322144755,1712848280915,-510.90660171,0.00033424,7]
[322144756,1712848280924,-544.705449,0.00033424,7]
[322144757,1712848280934,-544.705449,0.00033424,7]
[322144758,1712848280943,-544.705443,0.00033424,7]
[322144759,1712848280953,-962.41,0.00033424,7]
[322144760,1712848280962,-617.58,0.00033424,7]
[322144761,1712848280971,-500.0,0.00033424,7]
[322144762,1712848280980,-500.0,0.00033424,7]
[322144763,1712848280989,-500.0,0.00033424,7]
[322144764,1712848280999,-500.0,0.00033424,7]
[322144765,1712848281008,-500.0,0.00033424,2]
[322144766,1712848281017,-1120.54,0.00033424,7]
[322144767,1712848281027,-2596.36,0.00033424,7]
[322144768,1712848281036,-3619.72,0.00033424,7]
[322144769,1712848281046,-3468.51,0.00033424,7]
[322144770,1712848281055,-500.0,0.00033424,7]
[322144771,1712848281065,-48725.31,0.00033424,7]
[322144772,1712848281075,-4892.13,0.00033424,7]
[322144773,1712848281085,-1365.22,0.00033424,7]
[322144774,1712848281094,-500.0,0.00033424,7]
[322144775,1712848281103,-4175.31,0.00033424,7]
[322144776,1712848281113,-226.793385,0.00033424,7]
[322144777,1712848281126,-508.48,0.00033424,7]
[322144778,1712848281135,-519.77,0.00033424,7]
[322144779,1712848281144,-226.793385,0.00033424,7]
[322144780,1712848281154,-808.71,0.00033424,7]
[322144781,1712848281166,-500.0,0.00033424,2]
[322144782,1712848281175,-500.0,0.00033424,7]
[322144783,1712848281185,-898.14,0.00033424,7]
[322144784,1712848281194,-500.0,0.00033424,5]
[322144785,1712848281208,-500.0,0.00033424,7]
[322144786,1712848281219,-2661.65,0.00033424,7]
[322144787,1712848281228,-8021.24,0.00033424,7]
[322144788,1712848281238,-226.793385,0.00033424,7]
[322144789,1712848281247,-1727.6,0.00033424,7]
[322144790,1712848281259,-1260.95,0.00033424,7]
[322144791,1712848281268,-226.793376,0.00033424,7]
[322144792,1712848281277,-500.0,0.00033424,7]
[322144793,1712848281287,-9842.96,0.00033424,7]
[322144794,1712848281296,-391.1592401,0.00033424,2]
[322144795,1712848281305,-500.0,0.00033424,7]
[322144796,1712848281314,-4830.71,0.00033424,7]
[322144797,1712848281324,-6311.47,0.00033424,7]
[322144798,1712848281333,-992.49,0.00033424,7]
[322144799,1712848281344,-500.0,0.00033424,7]
[322144800,1712848281353,-500.0,0.00033424,7]
[322144801,1712848281362,-1670.71,0.00033424,7]
[322144802,1712848281371,-500.0,0.00033424,7]
[322144803,1712848281381,-500.0,0.00033424,7]
[322144804,1712848281391,-1621.79,0.00033424,7]
[322144805,1712848281401,-799.87,0.00033424,7]
[322144806,1712848281410,-514.23,0.00033424,7]
[322144807,1712848281419,-500.0,0.00033424,7]
[322144808,1712848281429,-524.19,0.00033424,7]
[322144809,1712848281438,-500.0,0.00033424,7]
[322144810,1712848281448,-581.7,0.00033424,7]
[322144811,1712848281457,-500.0,0.00033424,7]
[322144812,1712848281466,-313.882761,0.00033424,7]
[322144813,1712848281476,-4262.22,0.00033424,7]
[322144814,1712848281485,-11160.24,0.00033424,7]
[322144815,1712848281503,-500.0,0.00033424,7]
[322144816,1712848281517,-539.19,0.00033424,7]
[322144817,1712848281527,-1000.0,0.00033465,2]
[322144818,1712848281538,-153.2,0.000335,2]
[322144819,1712848281548,-153.2,0.000335,2]
[322144820,1712848281557,-153.2,0.000335,2]
[322144821,1712848281567,-153.2,0.000335,2]
[322144822,1712848281577,-153.2,0.000335,2]
[322144823,1712848281586,-157.95867717,0.000335,7]
[322144824,1712848281597,-321.68566179,0.00033529,2]
[322144825,1712848281606,-3105.91945334,0.00033585,2]
[322144826,1712848281615,-153.43809001,0.00033666,7]
[322144827,1712848281624,-250.0,0.000337,5]
[322144828,1712848281633,-309.0,0.000337,5]
[322144829,1712848281642,-2370.47952573,0.00033872,6]
[322144830,1712848281652,-500.0,0.000339,2]
[322144831,1712848281662,-2123.76488424,0.0003394,6]
[322144832,1712848281673,-7020.6955452,0.00033949,2]
[322144833,1712848281682,-603.3966163,0.00033949,2]
[322144834,1712848281692,-2004.1223426,0.00033949,2]
[322144835,1712848281702,-1007.79951036,0.00033971,2]
[322144836,1712848281712,-1603.06650925,0.00033972,4]
[322144837,1712848281721,-500.0,0.00033972,7]
[322144838,1712848281730,-500.0,0.00033972,7]
[322144839,1712848281740,-500.0,0.00033972,7]
[322144840,1712848281750,-225.49192212,0.00033972,7]
[322144841,1712848281759,-500.0,0.00033972,7]
[322144842,1712848281768,-500.0,0.00033972,7]
[322144843,1712848281777,-500.0,0.00033972,7]
[322144844,1712848281787,-500.0,0.00033972,7]
[322144845,1712848281796,-500.0,0.00033972,7]
[322144846,1712848281806,-183.09297377,0.00033972,7]
[322144847,1712848281816,-542.64839572,0.00033972,7]
[322144848,1712848281825,-503.98582876,0.00033972,7]
[322144849,1712848281835,-500.0,0.00033972,7]
[322144850,1712848281845,-500.0,0.00033972,7]
[322144851,1712848281854,-524.26063134,0.00033972,7]
[322144852,1712848281864,-500.0,0.00033972,7]
[322144853,1712848281874,-500.0,0.00033972,7]
[322144854,1712848281885,-500.0,0.00033972,7]
[322144855,1712848281894,-500.0,0.00033972,7]
[322144856,1712848281905,-500.0,0.00033972,7]
[322144857,1712848281914,-500.0,0.00033972,7]
[322144858,1712848281925,-570.80241689,0.00033972,7]
[322144859,1712848281936,-520.62363185,0.00033972,7]
[322144860,1712848281946,-500.0,0.00033972,7]
[322144861,1712848281956,-500.0,0.00033972,7]
[322144862,1712848281966,-500.0,0.00033972,7]
[322144863,1712848281975,-593.63195001,0.00033972,7]
[322144864,1712848281985,-500.0,0.00033972,7]
[322144865,1712848281994,-500.0,0.00033972,7]
[322144866,1712848282003,-500.0,0.00033972,7]
[322144867,1712848282013,-500.0,0.00033972,7]
[322144868,1712848282023,-500.0,0.00033972,7]
[322144869,1712848282032,-500.0,0.00033972,7]
[322144870,1712848282042,-500.0,0.00033972,7]
[322144871,1712848282051,-500.0,0.00033972,7]
[322144872,1712848282060,-500.0,0.00033972,7]
[322144873,1712848282069,-500.0,0.00033972,7]
[322144874,1712848282079,-500.0,0.00033972,7]
[322144875,1712848282088,-661.08,0.00033972,7]
[322144876,1712848282099,-500.0,0.00033972,7]
[322144877,1712848282108,-500.0,0.00033972,7]
[322144878,1712848282117,-500.0,0.00033972,7]
[322144879,1712848282130,-500.0,0.00033972,7]
[322144880,1712848282139,-500.0,0.00033972,7]
[322144881,1712848282149,-374.46137945,0.00033972,7]
[322144882,1712848282159,-1407.46,0.00033972,7]
[322144883,1712848282170,-500.0,0.00033972,7]
[322144884,1712848282179,-548.85597527,0.00033972,7]
[322144885,1712848282189,-500.0,0.00033972,7]
[322144886,1712848282199,-500.0,0.00033972,7]
[322144887,1712848282209,-500.0,0.00033972,7]
[322144888,1712848282219,-500.0,0.00033972,7]
[322144889,1712848282229,-935.23,0.00033972,7]
[322144890,1712848282238,-500.0,0.00033972,7]
[322144891,1712848282248,-500.0,0.00033972,7]
[322144892,1712848282259,-500.0,0.00033972,7]
[322144893,1712848282270,-500.47,0.00033972,7]
[322144894,1712848282280,-500.0,0.00033972,7]
[322144895,1712848282291,-500.0,0.00033972,7]
[322144896,1712848282300,-500.0,0.00033972,7]
[322144897,1712848282311,-500.0,0.00033972,7]
[322144898,1712848282321,-500.0,0.00033972,7]
[322144899,1712848282330,-500.0,0.00033972,7]
[322144900,1712848282340,-500.0,0.00033972,7]
[322144901,1712848282350,-500.0,0.00033972,7]
[322144902,1712848282359,-500.0,0.00033972,7]
[322144903,1712848282370,-500.0,0.00033972,7]
[322144904,1712848282380,-500.0,0.00033972,7]
[322144905,1712848282389,-500.0,0.00033972,7]
[322144906,1712848282399,-500.0,0.00033972,7]
[322144907,1712848282411,-500.0,0.00033972,7]
[322144908,1712848282421,-500.0,0.00033972,7]
[322144909,1712848282431,-500.0,0.00033972,7]
[322144910,1712848282443,-500.0,0.00033972,7]